[Event "Chess Festival Groningen 2023 | A"]
[Site "Groningen, Netherlands"]
[Date "2023.12.29"]
[Round "8.1"]
[White "Reinderman, Dimitri"]
[Black "Kazakouski, Valery"]
[Result "1/2-1/2"]
[TimeControl "90min/40moves + 30min + 30sec/move"]
[WhiteElo "2580"]
[BlackElo "2586"]

1. c4 {[%clk 01:30:59]} c6 {[%clk 01:30:15]} {[%emt 00:00:45]} 2. e4 {[%clk
01:31:15]} {[%emt 00:00:15]} d5 {[%clk 01:30:30]} {[%emt 00:00:15]} 3. cxd5
{[%clk 01:31:36]} {[%emt 00:00:09]} cxd5 {[%clk 01:30:47]} {[%emt 00:00:13]} 4.
exd5 {[%clk 01:31:56]} {[%emt 00:00:10]} Nf6 {[%clk 01:31:00]} {[%emt
00:00:16]} 5. Nc3 {[%clk 01:32:05]} {[%emt 00:00:21]} Nxd5 {[%clk 01:30:45]}
{[%emt 00:00:44]} 6. Nf3 {[%clk 01:32:25]} {[%emt 00:00:11]} Nc6 {[%clk
01:30:52]} {[%emt 00:00:23]} 7. Bb5 {[%clk 01:32:41]} {[%emt 00:00:15]} g6
{[%clk 01:29:13]} {[%emt 00:02:07]} 8. Qa4 {[%clk 01:32:45]} {[%emt 00:00:26]}
Nb6 {[%clk 01:28:46]} {[%emt 00:00:57]} 9. Bxc6+ {[%clk 01:33:00]} {[%emt
00:00:16]} bxc6 {[%clk 01:29:08]} {[%emt 00:00:08]} 10. Qxc6+ {[%clk 01:33:15]}
{[%emt 00:00:15]} Bd7 {[%clk 01:29:29]} {[%emt 00:00:08]} 11. Qe4 {[%clk
01:33:23]} {[%emt 00:00:23]} Bg7 {[%clk 01:28:55]} {[%emt 00:01:03]} 12. d4
{[%clk 01:33:14]} {[%emt 00:00:40]} Rc8 {[%clk 01:28:49]} {[%emt 00:00:35]} 13.
O-O {[%clk 01:32:00]} {[%emt 00:01:43]} Bc6 {[%clk 01:28:40]} {[%emt 00:00:39]}
14. Qe2 {[%clk 01:31:48]} {[%emt 00:00:43]} O-O {[%clk 01:27:27]} {[%emt
00:01:43]} 15. Be3 {[%clk 01:29:17]} {[%emt 00:03:02]} Nd5 {[%clk 01:15:46]}
{[%emt 00:12:10]} 16. Rac1 {[%clk 01:28:34]} {[%emt 00:01:13]} Qb6 {[%clk
01:14:48]} {[%emt 00:01:28]} 17. Nxd5 {[%clk 01:13:21]} {[%emt 00:15:44]} Bxd5
{[%clk 01:11:14]} {[%emt 00:04:04]} 18. b3 {[%clk 01:13:44]} {[%emt 00:00:08]}
Bxf3 {[%clk 01:04:14]} {[%emt 00:07:29]} 19. Qxf3 {[%clk 01:13:13]} {[%emt
00:01:02]} Bxd4 {[%clk 01:03:46]} {[%emt 00:00:59]} 20. Bxd4 {[%clk 01:10:15]}
{[%emt 00:03:28]} Qxd4 {[%clk 01:02:36]} {[%emt 00:01:38]} 21. g3 {[%clk
01:10:12]} {[%emt 00:00:35]} a5 {[%clk 00:59:40]} {[%emt 00:03:25]} 22. Qb7
{[%clk 00:58:50]} {[%emt 00:11:53]} Rxc1 {[%clk 00:57:58]} {[%emt 00:02:11]} 23.
Rxc1 {[%clk 00:58:54]} {[%emt 00:00:26]} Qd2 {[%clk 00:58:20]} {[%emt
00:00:08]} 24. Rc7 {[%clk 00:58:13]} {[%emt 00:01:11]} Qxa2 {[%clk 00:58:22]}
{[%emt 00:00:28]} 25. Rxe7 {[%clk 00:58:27]} {[%emt 00:00:17]} a4 {[%clk
00:58:40]} {[%emt 00:00:11]} 1/2-1/2

[Event "Chess Festival Groningen 2023 | A"]
[Site "Groningen, Netherlands"]
[Date "2023.12.29"]
[Round "8.2"]
[White "Lahaye, Rick"]
[Black "Romanov, Evgeny"]
[Result "0-1"]
[TimeControl "90min/40moves + 30min + 30sec/move"]
[WhiteElo "2439"]
[BlackElo "2561"]

1. c4 {[%clk 01:30:56]} {[%emt 00:00:04]} e6 {[%clk 01:30:30]} {[%emt
00:00:30]} 2. Nf3 {[%clk 01:30:40]} {[%emt 00:00:45]} d5 {[%clk 01:30:35]}
{[%emt 00:00:25]} 3. e3 {[%clk 01:30:49]} {[%emt 00:00:22]} Nf6 {[%clk
01:30:25]} {[%emt 00:00:40]} 4. b3 {[%clk 01:30:46]} {[%emt 00:00:33]} b6
{[%clk 01:30:01]} {[%emt 00:00:55]} 5. g3 {[%clk 01:30:41]} {[%emt 00:00:35]}
Bb7 {[%clk 01:29:30]} {[%emt 00:01:00]} 6. Bg2 {[%clk 01:30:39]} {[%emt
00:00:32]} Nbd7 {[%clk 01:29:39]} {[%emt 00:00:22]} 7. O-O {[%clk 01:23:13]}
{[%emt 00:07:56]} Bd6 {[%clk 01:28:28]} {[%emt 00:01:40]} 8. Bb2 {[%clk
01:20:40]} {[%emt 00:03:04]} Qe7 {[%clk 01:18:51]} {[%emt 00:10:07]} 9. cxd5
{[%clk 01:03:55]} {[%emt 00:17:16]} exd5 {[%clk 01:18:44]} {[%emt 00:00:36]} 10.
Nd4 {[%clk 01:04:20]} {[%emt 00:00:06]} O-O {[%clk 01:09:01]} {[%emt 00:10:13]}
11. Nf5 {[%clk 01:04:18]} {[%emt 00:00:32]} Qe6 {[%clk 01:09:21]} {[%emt
00:00:10]} 12. Nxd6 {[%clk 01:04:39]} {[%emt 00:00:10]} cxd6 {[%clk 01:09:39]}
{[%emt 00:00:11]} 13. Nc3 {[%clk 00:56:41]} {[%emt 00:08:28]} Ba6 {[%clk
01:08:00]} {[%emt 00:02:10]} 14. Ne2 {[%clk 00:55:42]} {[%emt 00:01:28]} Qf5
{[%clk 01:00:40]} {[%emt 00:07:49]} 15. h3 {[%clk 00:37:00]} {[%emt 00:19:13]}
h5 {[%clk 00:53:36]} {[%emt 00:07:34]} 16. Re1 {[%clk 00:31:10]} {[%emt
00:06:21]} Ne5 {[%clk 00:49:52]} {[%emt 00:04:13]} 17. Nf4 {[%clk 00:30:59]}
{[%emt 00:00:40]} Rac8 {[%clk 00:49:35]} {[%emt 00:00:47]} 18. Bc3 {[%clk
00:27:53]} {[%emt 00:03:36]} Rfe8 {[%clk 00:45:39]} {[%emt 00:04:26]} 19. a4
{[%clk 00:22:28]} {[%emt 00:05:55]} Bd3 {[%clk 00:37:55]} {[%emt 00:08:13]} 20.
Rc1 {[%clk 00:19:05]} {[%emt 00:03:54]} g6 {[%clk 00:36:50]} {[%emt 00:01:34]}
21. Bxe5 {[%clk 00:10:38]} {[%emt 00:08:58]} dxe5 {[%clk 00:35:20]} {[%emt
00:02:00]} 22. Rxc8 {[%clk 00:07:49]} {[%emt 00:03:19]} Rxc8 {[%clk 00:35:36]}
{[%emt 00:00:15]} 23. Nxd3 {[%clk 00:08:15]} {[%emt 00:00:05]} Qxd3 {[%clk
00:35:39]} {[%emt 00:00:26]} 24. Bf1 {[%clk 00:08:31]} {[%emt 00:00:13]} Qc2
{[%clk 00:33:19]} {[%emt 00:02:50]} 25. d4 {[%clk 00:08:47]} {[%emt 00:00:14]}
exd4 {[%clk 00:27:33]} {[%emt 00:06:15]} 26. Qxc2 {[%clk 00:06:04]} {[%emt
00:03:14]} Rxc2 {[%clk 00:27:58]} {[%emt 00:00:05]} 27. exd4 {[%clk 00:06:32]}
{[%emt 00:00:02]} Rb2 {[%clk 00:26:33]} {[%emt 00:01:54]} 28. Re3 {[%clk
00:04:41]} {[%emt 00:02:22]} Ne4 {[%clk 00:25:16]} {[%emt 00:01:47]} 29. Bg2
{[%clk 00:04:39]} {[%emt 00:00:32]} Nxf2 {[%clk 00:19:40]} {[%emt 00:06:06]} 30.
Re7 {[%clk 00:04:59]} {[%emt 00:00:11]} Ne4 {[%clk 00:15:45]} {[%emt 00:04:24]}
31. Rxa7 {[%clk 00:01:24]} {[%emt 00:04:06]} Rxb3 {[%clk 00:16:05]} {[%emt
00:00:09]} 32. Rd7 {[%clk 00:01:32]} {[%emt 00:00:22]} Nf6 {[%clk 00:15:30]}
{[%emt 00:01:04]} 33. Rd8+ {[%clk 00:01:16]} {[%emt 00:00:47]} Kg7 {[%clk
00:15:53]} {[%emt 00:00:07]} 34. g4 {[%clk 00:01:11]} {[%emt 00:00:35]} hxg4
{[%clk 00:15:57]} {[%emt 00:00:26]} 35. hxg4 {[%clk 00:01:33]} {[%emt
00:00:08]} Rd3 {[%clk 00:09:44]} {[%emt 00:06:43]} 36. g5 {[%clk 00:00:55]}
{[%emt 00:01:08]} Ng4 {[%clk 00:10:04]} {[%emt 00:00:09]} 37. Rd6 {[%clk
00:00:34]} {[%emt 00:00:51]} Rd1+ {[%clk 00:09:20]} {[%emt 00:01:14]} 38. Bf1
{[%clk 00:01:03]} {[%emt 00:00:01]} Ne3 {[%clk 00:09:27]} {[%emt 00:00:22]} 39.
Kf2 {[%clk 00:01:30]} {[%emt 00:00:03]} Nxf1 {[%clk 00:09:35]} {[%emt
00:00:23]} 40. Rxb6 {[%clk 00:00:48]} {[%emt 00:01:13]} Rxd4 {[%clk 00:09:11]}
{[%emt 00:00:53]} 41. a5 {[%clk 00:00:46]} {[%emt 00:00:32]} Rf4+ {[%clk
00:06:37]} {[%emt 00:03:03]} 0-1

[Event "Chess Festival Groningen 2023 | A"]
[Site "Groningen, Netherlands"]
[Date "2023.12.29"]
[Round "8.3"]
[White "Kanov, Nikola"]
[Black "Tiviakov, Sergei"]
[Result "1/2-1/2"]
[TimeControl "90min/40moves + 30min + 30sec/move"]
[WhiteElo "2371"]
[BlackElo "2536"]

1. e4 {[%clk 01:30:57]} {[%emt 00:00:03]} d5 {[%clk 01:30:54]} {[%emt
00:00:06]} 2. exd5 {[%clk 01:31:17]} {[%emt 00:00:10]} Qxd5 {[%clk 01:31:18]}
{[%emt 00:00:06]} 3. Nc3 {[%clk 01:31:36]} {[%emt 00:00:11]} Qd6 {[%clk
01:31:43]} {[%emt 00:00:06]} 4. d4 {[%clk 01:31:40]} {[%emt 00:00:26]} Nf6
{[%clk 01:32:06]} {[%emt 00:00:06]} 5. Nf3 {[%clk 01:32:01]} {[%emt 00:00:09]}
c6 {[%clk 01:32:31]} {[%emt 00:00:05]} 6. Ne5 {[%clk 01:31:32]} {[%emt
00:01:00]} Nbd7 {[%clk 01:32:50]} {[%emt 00:00:11]} 7. Nc4 {[%clk 01:31:55]}
{[%emt 00:00:06]} Qc7 {[%clk 01:33:13]} {[%emt 00:00:08]} 8. a4 {[%clk
01:32:02]} {[%emt 00:00:23]} g6 {[%clk 01:31:49]} {[%emt 00:01:53]} 9. g3
{[%clk 01:31:15]} {[%emt 00:01:17]} Bg7 {[%clk 01:28:36]} {[%emt 00:03:43]} 10.
Bg2 {[%clk 01:27:30]} {[%emt 00:04:15]} Nb6 {[%clk 01:26:12]} {[%emt 00:02:54]}
11. Ne5 {[%clk 01:24:05]} {[%emt 00:03:55]} Be6 {[%clk 01:20:52]} {[%emt
00:05:50]} 12. O-O {[%clk 01:20:40]} {[%emt 00:03:55]} a5 {[%clk 01:07:53]}
{[%emt 00:13:28]} 13. Qe2 {[%clk 01:14:10]} {[%emt 00:06:59]} Rd8 {[%clk
01:01:37]} {[%emt 00:06:46]} 14. Bf4 {[%clk 01:08:45]} {[%emt 00:05:55]} Qc8
{[%clk 01:02:02]} {[%emt 00:00:05]} 15. Rad1 {[%clk 01:08:27]} {[%emt
00:00:48]} O-O {[%clk 01:01:34]} {[%emt 00:00:58]} 16. b3 {[%clk 01:04:10]}
{[%emt 00:04:48]} c5 {[%clk 00:39:48]} {[%emt 00:22:15]} 17. dxc5 {[%clk
00:56:50]} {[%emt 00:07:50]} Qxc5 {[%clk 00:40:08]} {[%emt 00:00:11]} 18. Nb5
{[%clk 00:53:43]} {[%emt 00:03:37]} Nfd5 {[%clk 00:30:35]} {[%emt 00:10:03]} 19.
Nd3 {[%clk 00:48:36]} {[%emt 00:05:37]} Nxf4 {[%clk 00:28:57]} {[%emt
00:02:07]} 20. Nxf4 {[%clk 00:48:58]} {[%emt 00:00:08]} Bf5 {[%clk 00:24:27]}
{[%emt 00:05:01]} 21. c4 {[%clk 00:47:26]} {[%emt 00:02:02]} e5 {[%clk
00:22:41]} {[%emt 00:02:16]} 22. Nd3 {[%clk 00:46:38]} {[%emt 00:01:19]} Qe7
{[%clk 00:22:38]} {[%emt 00:00:33]} 23. Qe3 {[%clk 00:45:32]} {[%emt 00:01:36]}
Bxd3 {[%clk 00:17:39]} {[%emt 00:05:28]} 24. Rxd3 {[%clk 00:45:51]} {[%emt
00:00:11]} Rxd3 {[%clk 00:18:07]} {[%emt 00:00:02]} 25. Qxd3 {[%clk 00:46:14]}
{[%emt 00:00:07]} Nd7 {[%clk 00:18:34]} {[%emt 00:00:02]} 26. Rd1 {[%clk
00:38:10]} {[%emt 00:08:34]} Nc5 {[%clk 00:18:58]} {[%emt 00:00:07]} 27. Qe3
{[%clk 00:38:32]} {[%emt 00:00:07]} f5 {[%clk 00:07:30]} {[%emt 00:11:58]} 28.
Rd6 {[%clk 00:37:04]} {[%emt 00:01:58]} Rc8 {[%clk 00:07:56]} {[%emt 00:00:04]}
29. Bd5+ {[%clk 00:35:44]} {[%emt 00:01:50]} Kh8 {[%clk 00:08:24]} {[%emt
00:00:02]} 30. h4 {[%clk 00:35:27]} {[%emt 00:00:47]} e4 {[%clk 00:07:27]}
{[%emt 00:01:27]} 31. f4 {[%clk 00:29:54]} {[%emt 00:06:02]} Bf8 {[%clk
00:06:23]} {[%emt 00:01:35]} 32. Qc3+ {[%clk 00:14:27]} {[%emt 00:15:57]} Qg7
{[%clk 00:06:39]} {[%emt 00:00:14]} 33. Rb6 {[%clk 00:14:01]} {[%emt 00:00:56]}
Qxc3 {[%clk 00:05:45]} {[%emt 00:01:25]} 34. Nxc3 {[%clk 00:14:29]} {[%emt
00:00:01]} Rc7 {[%clk 00:04:50]} {[%emt 00:01:25]} 35. Kf1 {[%clk 00:14:20]}
{[%emt 00:00:39]} Nd7 {[%clk 00:04:03]} {[%emt 00:01:17]} 36. Rxb7 {[%clk
00:11:36]} {[%emt 00:03:14]} Rxb7 {[%clk 00:04:31]} {[%emt 00:00:03]} 37. Bxb7
{[%clk 00:12:01]} {[%emt 00:00:04]} Nc5 {[%clk 00:04:59]} {[%emt 00:00:01]} 38.
Bc8 {[%clk 00:11:09]} {[%emt 00:01:22]} Nxb3 {[%clk 00:05:25]} {[%emt
00:00:04]} 39. g4 {[%clk 00:08:55]} {[%emt 00:02:44]} Bb4 {[%clk 00:05:18]}
{[%emt 00:00:37]} 40. Nd5 {[%clk 00:07:35]} {[%emt 00:01:50]} fxg4 {[%clk
00:04:36]} {[%emt 00:01:13]} 41. Bxg4 {[%clk 00:07:10]} {[%emt 00:00:55]} Bc5
{[%clk 00:00:59]} {[%emt 00:04:07]} 42. Nc3 {[%clk 00:27:55]} {[%emt 00:09:44]}
e3 {[%clk 00:30:36]} {[%emt 00:00:53]} 43. Ne4 {[%clk 00:25:21]} {[%emt
00:03:04]} Bb6 {[%clk 00:28:13]} {[%emt 00:02:54]} 44. h5 {[%clk 00:23:07]}
{[%emt 00:02:44]} Nd4 {[%clk 00:12:04]} {[%emt 00:16:39]} 45. hxg6 {[%clk
00:23:05]} {[%emt 00:00:31]} hxg6 {[%clk 00:12:31]} {[%emt 00:00:03]} 46. Nc3
{[%clk 00:21:56]} {[%emt 00:01:40]} Bc5 {[%clk 00:12:06]} {[%emt 00:00:56]} 47.
Nd5 {[%clk 00:21:51]} {[%emt 00:00:34]} Nb3 {[%clk 00:12:28]} {[%emt 00:00:07]}
48. Ke2 {[%clk 00:19:09]} {[%emt 00:03:12]} Nc1+ {[%clk 00:12:51]} {[%emt
00:00:07]} 49. Kd1 {[%clk 00:18:49]} {[%emt 00:00:50]} Nd3 {[%clk 00:13:18]}
{[%emt 00:00:03]} 50. Ke2 {[%clk 00:18:35]} {[%emt 00:00:44]} Nb2 {[%clk
00:13:36]} {[%emt 00:00:12]} 51. Bd7 {[%clk 00:18:08]} {[%emt 00:00:57]} Nxc4
{[%clk 00:13:50]} {[%emt 00:00:16]} 52. Bb5 {[%clk 00:18:21]} {[%emt 00:00:17]}
Nb6 {[%clk 00:10:57]} {[%emt 00:03:23]} 1/2-1/2

[Event "Chess Festival Groningen 2023 | A"]
[Site "Groningen, Netherlands"]
[Date "2023.12.29"]
[Round "8.4"]
[White "Panda, Sambit"]
[Black "Aarav, Dengla"]
[Result "1-0"]
[TimeControl "90min/40moves + 30min + 30sec/move"]
[WhiteFideId "25091794"]
[BlackFideId "45059756"]
[WhiteElo "2404"]
[BlackElo "2382"]

1. d4 {[%clk 01:30:37]} {[%emt 00:00:23]} d5 {[%clk 01:30:31]} {[%emt
00:00:29]} 2. c4 {[%clk 01:30:59]} {[%emt 00:00:07]} c6 {[%clk 01:30:35]}
{[%emt 00:00:28]} 3. Nf3 {[%clk 01:23:38]} {[%emt 00:07:51]} Nf6 {[%clk
01:30:31]} {[%emt 00:00:34]} 4. Nc3 {[%clk 01:23:58]} {[%emt 00:00:09]} e6
{[%clk 01:30:13]} {[%emt 00:00:48]} 5. e3 {[%clk 01:12:57]} {[%emt 00:11:31]}
Nbd7 {[%clk 01:29:53]} {[%emt 00:00:49]} 6. Be2 {[%clk 01:13:15]} {[%emt
00:00:12]} Bd6 {[%clk 01:29:19]} {[%emt 00:01:05]} 7. O-O {[%clk 01:13:39]}
{[%emt 00:00:07]} O-O {[%clk 01:29:25]} {[%emt 00:00:23]} 8. b3 {[%clk
01:13:50]} {[%emt 00:00:20]} b6 {[%clk 01:28:30]} {[%emt 00:01:25]} 9. Bb2
{[%clk 01:14:14]} {[%emt 00:00:06]} Bb7 {[%clk 01:28:53]} {[%emt 00:00:07]} 10.
a4 {[%clk 01:14:39]} {[%emt 00:00:05]} Rc8 {[%clk 01:27:06]} {[%emt 00:02:16]}
11. a5 {[%emt 00:03:13]} c5 {[%clk 01:27:08]} {[%emt 00:00:26]} 12. Nb5 {[%clk
00:47:46]} {[%emt 00:24:42]} Bb8 {[%clk 01:27:24]} {[%emt 00:00:14]} 13. a6
{[%clk 00:47:55]} {[%emt 00:00:21]} Ba8 {[%clk 01:27:50]} {[%emt 00:00:04]} 14.
Ne5 {[%clk 00:38:29]} {[%emt 00:09:56]} Ne4 {[%clk 01:08:39]} {[%emt 00:19:41]}
15. cxd5 {[%clk 00:13:59]} {[%emt 00:25:00]} exd5 {[%clk 01:05:11]} {[%emt
00:03:58]} 16. Rc1 {[%clk 00:14:12]} {[%emt 00:00:17]} f6 {[%clk 00:24:22]}
{[%emt 00:41:18]} 17. Nf3 {[%clk 00:09:14]} {[%emt 00:05:28]} Qe7 {[%clk
00:23:51]} {[%emt 00:01:02]} 18. Qc2 {[%clk 00:02:55]} {[%emt 00:06:49]} Rc6
{[%clk 00:21:19]} {[%emt 00:03:03]} 19. Nc3 {[%clk 00:01:35]} {[%emt 00:01:49]}
Rcc8 {[%clk 00:18:59]} {[%emt 00:02:51]} 20. Rfd1 {[%clk 00:00:50]} {[%emt
00:01:15]} Nxc3 {[%clk 00:10:57]} {[%emt 00:08:31]} 21. Qxc3 {[%clk 00:00:45]}
{[%emt 00:00:35]} f5 {[%clk 00:09:15]} {[%emt 00:02:13]} 22. dxc5 {[%clk
00:00:44]} {[%emt 00:00:31]} bxc5 {[%clk 00:07:49]} {[%emt 00:01:55]} 23. b4
{[%clk 00:01:09]} {[%emt 00:00:05]} c4 {[%clk 00:05:46]} {[%emt 00:02:34]} 24.
b5 {[%clk 00:00:59]} {[%emt 00:00:40]} Bd6 {[%clk 00:05:53]} {[%emt 00:00:23]}
25. Qc2 {[%clk 00:00:33]} {[%emt 00:00:56]} Nc5 {[%clk 00:02:50]} {[%emt
00:03:33]} 26. Nd4 {[%clk 00:00:45]} {[%emt 00:00:18]} Qd7 {[%clk 00:02:54]}
{[%emt 00:00:25]} 27. g3 {[%clk 00:00:35]} {[%emt 00:00:40]} Be5 {[%clk
00:02:22]} {[%emt 00:01:03]} 28. Nc6 {[%clk 00:00:35]} {[%emt 00:00:30]} Bxc6
{[%clk 00:02:01]} {[%emt 00:00:51]} 29. bxc6 {[%clk 00:00:59]} {[%emt
00:00:06]} Qe6 {[%clk 00:02:23]} {[%emt 00:00:08]} 30. Bxe5 {[%clk 00:01:24]}
{[%emt 00:00:04]} Qxe5 {[%clk 00:02:46]} {[%emt 00:00:06]} 31. Rxd5 {[%clk
00:01:50]} {[%emt 00:00:05]} Qe7 {[%clk 00:01:56]} {[%emt 00:01:20]} 32. Qxc4
{[%clk 00:02:15]} {[%emt 00:00:04]} Ne6 {[%clk 00:02:00]} {[%emt 00:00:26]} 33.
Re5 {[%clk 00:01:45]} {[%emt 00:01:00]} Rf6 {[%clk 00:02:25]} {[%emt 00:00:05]}
34. Qd5 {[%clk 00:01:03]} {[%emt 00:01:11]} Rd8 {[%clk 00:01:13]} {[%emt
00:01:44]} 35. Qb3 {[%clk 00:01:09]} {[%emt 00:00:24]} Kf8 {[%clk 00:00:47]}
{[%emt 00:00:56]} 36. Bc4 {[%clk 00:00:42]} {[%emt 00:00:57]} Nc5 {[%clk
00:00:56]} {[%emt 00:00:22]} 37. Rxe7 {[%clk 00:00:43]} {[%emt 00:00:29]} Nxb3
{[%clk 00:01:21]} {[%emt 00:00:05]} 38. Rd7 {[%clk 00:01:10]} {[%emt 00:00:03]}
1-0

[Event "Chess Festival Groningen 2023 | A"]
[Site "Groningen, Netherlands"]
[Date "2023.12.29"]
[Round "8.5"]
[White "Kobo, Ori"]
[Black "Maatman, Nick"]
[Result "1-0"]
[TimeControl "90min/40moves + 30min + 30sec/move"]
[WhiteElo "2541"]
[BlackElo "2371"]

1. d4 {[%clk 01:30:50]} {[%emt 00:00:09]} Nf6 {[%clk 01:30:55]} {[%emt
00:00:05]} 2. Nf3 {[%clk 01:31:00]} {[%emt 00:00:19]} e6 {[%clk 01:30:38]}
{[%emt 00:00:49]} 3. e3 {[%clk 01:31:13]} {[%emt 00:00:17]} d5 {[%clk
01:30:57]} {[%emt 00:00:11]} 4. b3 {[%clk 01:31:17]} {[%emt 00:00:25]} Be7
{[%clk 01:30:38]} {[%emt 00:00:49]} 5. Bb2 {[%clk 01:31:28]} {[%emt 00:00:19]}
O-O {[%clk 01:30:41]} {[%emt 00:00:28]} 6. Bd3 {[%clk 01:30:31]} {[%emt
00:01:26]} b6 {[%clk 01:31:01]} {[%emt 00:00:11]} 7. O-O {[%clk 01:30:16]}
{[%emt 00:00:44]} Ba6 {[%clk 01:26:20]} {[%emt 00:05:12]} 8. Bxa6 {[%clk
01:24:52]} {[%emt 00:05:54]} Nxa6 {[%clk 01:26:22]} {[%emt 00:00:28]} 9. Ne5
{[%clk 01:17:54]} {[%emt 00:07:27]} Qc8 {[%clk 01:22:19]} {[%emt 00:04:33]} 10.
c4 {[%clk 01:14:48]} {[%emt 00:03:36]} c5 {[%clk 01:20:16]} {[%emt 00:02:33]}
11. Nd2 {[%clk 01:11:55]} {[%emt 00:03:23]} Qb7 {[%clk 01:15:00]} {[%emt
00:05:46]} 12. Qe2 {[%clk 01:03:58]} {[%emt 00:08:26]} Rfd8 {[%clk 01:11:34]}
{[%emt 00:03:57]} 13. Rfd1 {[%clk 00:56:31]} {[%emt 00:07:57]} Rac8 {[%clk
01:11:49]} {[%emt 00:00:16]} 14. Ndf3 {[%clk 00:52:02]} {[%emt 00:04:58]} h6
{[%clk 01:09:53]} {[%emt 00:02:26]} 15. Rac1 {[%clk 00:49:44]} {[%emt
00:02:48]} dxc4 {[%clk 00:53:31]} {[%emt 00:16:53]} 16. bxc4 {[%clk 00:49:20]}
{[%emt 00:00:53]} cxd4 {[%clk 00:53:36]} {[%emt 00:00:26]} 17. exd4 {[%clk
00:48:42]} {[%emt 00:01:06]} Qe4 {[%clk 00:52:45]} {[%emt 00:01:22]} 18. Qf1
{[%clk 00:48:03]} {[%emt 00:01:07]} Nb4 {[%clk 00:49:26]} {[%emt 00:03:50]} 19.
a3 {[%clk 00:44:51]} {[%emt 00:03:43]} Nc6 {[%clk 00:45:41]} {[%emt 00:04:15]}
20. Re1 {[%clk 00:43:27]} {[%emt 00:01:53]} Qf4 {[%clk 00:40:42]} {[%emt
00:05:29]} 21. Nxc6 {[%clk 00:39:02]} {[%emt 00:04:56]} Rxc6 {[%clk 00:41:11]}
{[%emt 00:00:02]} 22. d5 {[%clk 00:39:10]} {[%emt 00:00:21]} Rcc8 {[%clk
00:39:41]} {[%emt 00:02:00]} 23. dxe6 {[%clk 00:38:56]} {[%emt 00:00:44]} Bc5
{[%clk 00:37:33]} {[%emt 00:02:38]} 24. exf7+ {[%clk 00:37:35]} {[%emt
00:01:51]} Kxf7 {[%clk 00:30:17]} {[%emt 00:07:47]} 25. Ne5+ {[%clk 00:31:42]}
{[%emt 00:06:23]} Kg8 {[%clk 00:30:44]} {[%emt 00:00:02]} 26. Ng6 {[%clk
00:31:09]} {[%emt 00:01:02]} Qc7 {[%clk 00:30:05]} {[%emt 00:01:10]} 27. Bxf6
{[%clk 00:26:55]} {[%emt 00:04:43]} gxf6 {[%clk 00:30:33]} {[%emt 00:00:03]} 28.
Rc3 {[%clk 00:24:30]} {[%emt 00:02:55]} Rd2 {[%clk 00:26:56]} {[%emt 00:04:07]}
29. Rf3 {[%clk 00:24:42]} {[%emt 00:00:17]} Rcd8 {[%clk 00:21:22]} {[%emt
00:06:05]} 30. Nh4 {[%clk 00:18:23]} {[%emt 00:06:49]} R8d4 {[%clk 00:13:52]}
{[%emt 00:08:00]} 31. g3 {[%clk 00:11:54]} {[%emt 00:07:00]} Qc6 {[%clk
00:13:27]} {[%emt 00:00:55]} 32. Qh3 {[%clk 00:09:37]} {[%emt 00:02:47]} Re4
{[%clk 00:04:33]} {[%emt 00:09:25]} 33. Rf1 {[%clk 00:07:30]} {[%emt 00:02:36]}
Qe6 {[%clk 00:02:47]} {[%emt 00:02:15]} 34. Nf5 {[%clk 00:06:10]} {[%emt
00:01:50]} Re1 {[%clk 00:02:52]} {[%emt 00:00:25]} 35. Qxh6 {[%clk 00:02:11]}
{[%emt 00:04:29]} Rxf1+ {[%clk 00:00:50]} {[%emt 00:02:33]} 36. Kxf1 {[%clk
00:02:36]} {[%emt 00:00:04]} Qxc4+ {[%clk 00:00:50]} {[%emt 00:00:30]} 37. Kg2
{[%clk 00:02:45]} {[%emt 00:00:22]} 1-0

[Event "Chess Festival Groningen 2023 | A"]
[Site "Groningen, Netherlands"]
[Date "2023.12.29"]
[Round "8.6"]
[White "Jin, Yueheng"]
[Black "Beerdsen, Thomas"]
[Result "1-0"]
[TimeControl "90min/40moves + 30min + 30sec/move"]
[WhiteElo "2398"]
[BlackElo "2511"]

1. d4 {[%clk 01:30:57]} {[%emt 00:00:02]} Nf6 {[%clk 01:30:48]} {[%emt
00:00:12]} 2. c4 {[%clk 01:31:24]} {[%emt 00:00:04]} e6 {[%clk 01:31:10]}
{[%emt 00:00:06]} 3. Nf3 {[%clk 01:31:50]} {[%emt 00:00:05]} b6 {[%clk
01:30:53]} {[%emt 00:00:47]} 4. g3 {[%clk 01:32:02]} {[%emt 00:00:18]} Ba6
{[%clk 01:30:58]} {[%emt 00:00:24]} 5. Qc2 {[%clk 01:31:44]} {[%emt 00:00:49]}
Bb4+ {[%clk 01:29:29]} {[%emt 00:01:59]} 6. Nbd2 {[%clk 01:28:50]} {[%emt
00:03:24]} c5 {[%clk 01:24:47]} {[%emt 00:05:11]} 7. Bg2 {[%clk 01:16:51]}
{[%emt 00:12:29]} Nc6 {[%clk 01:20:26]} {[%emt 00:04:52]} 8. dxc5 {[%clk
01:12:53]} {[%emt 00:04:29]} Bxc5 {[%clk 01:16:04]} {[%emt 00:04:51]} 9. O-O
{[%clk 01:12:57]} {[%emt 00:00:26]} O-O {[%clk 01:16:04]} {[%emt 00:00:30]} 10.
a3 {[%clk 01:12:15]} {[%emt 00:01:14]} d5 {[%clk 01:09:31]} {[%emt 00:07:02]}
11. b4 {[%clk 00:57:23]} {[%emt 00:15:23]} Bd4 {[%clk 01:04:49]} {[%emt
00:05:11]} 12. Rb1 {[%clk 00:53:30]} {[%emt 00:04:24]} Bxc4 {[%clk 00:55:53]}
{[%emt 00:09:25]} 13. Nxc4 {[%clk 00:52:24]} {[%emt 00:01:37]} dxc4 {[%clk
00:56:04]} {[%emt 00:00:18]} 14. e3 {[%clk 00:49:21]} {[%emt 00:03:33]} e5
{[%clk 00:54:23]} {[%emt 00:02:11]} 15. Nxd4 {[%clk 00:46:40]} {[%emt
00:03:12]} exd4 {[%clk 00:53:45]} {[%emt 00:01:07]} 16. Bxc6 {[%clk 00:47:07]}
{[%emt 00:00:04]} Rc8 {[%clk 00:53:24]} {[%emt 00:00:50]} 17. b5 {[%clk
00:47:33]} {[%emt 00:00:04]} a6 {[%clk 00:50:21]} {[%emt 00:03:33]} 18. a4
{[%clk 00:47:55]} {[%emt 00:00:08]} axb5 {[%clk 00:49:01]} {[%emt 00:01:51]} 19.
axb5 {[%clk 00:48:22]} {[%emt 00:00:04]} Ng4 {[%clk 00:48:25]} {[%emt
00:01:04]} 20. Qxc4 {[%clk 00:44:50]} {[%emt 00:04:02]} Rxc6 {[%clk 00:45:33]}
{[%emt 00:03:22]} 21. Qxc6 {[%clk 00:44:33]} {[%emt 00:00:48]} Ne5 {[%clk
00:45:21]} {[%emt 00:00:40]} 22. Qe4 {[%clk 00:44:28]} {[%emt 00:00:37]} Re8
{[%clk 00:44:59]} {[%emt 00:00:51]} 23. exd4 {[%clk 00:44:35]} {[%emt
00:00:24]} 1-0